fUSD/lending_fUSD_20240301
["ID","MTS","AMOUNT","RATE_DAILY","PERIOD"]
[315983496,1709314246666,-3438.1,0.00021917,2]
[315983499,1709314246675,-500.0,0.00021917,2]
[315983501,1709314246685,-500.0,0.00021917,2]
[315983502,1709314246695,-1428.36,0.00021917,2]
[315983503,1709314246704,-500.0,0.00021917,2]
[315983505,1709314246714,-500.0,0.00021917,2]
[315983507,1709314246725,-500.0,0.00021917,2]
[315983508,1709314246734,-1857.2,0.00021917,2]
[315983509,1709314246744,-1133.47,0.00021917,2]
[315983510,1709314246753,-833.88,0.00021917,2]
[315983511,1709314246762,-500.0,0.00021917,2]
[315983512,1709314246773,-98.8525127,0.00021917,2]
[315983513,1709314246786,-601.69981911,0.00021917,2]
[315983514,1709314246801,-1226.18766819,0.00021917,2]
[315983515,1709314246810,-92.89174322,0.00021917,2]
[315983516,1709314246823,-691.96825678,0.00021917,2]
[315983517,1709314246832,-500.0,0.00021917,2]
[315983518,1709314246842,-500.0,0.00021917,2]
[315983519,1709314246851,-500.0,0.00021917,2]
[315983521,1709314246860,-289.22049801,0.00021917,2]
[315983524,1709314246872,-250.42240773,0.00021917,2]
[315983526,1709314246887,-190.49709426,0.00021917,2]
[315983528,1709314246897,-329.23027028,0.00021917,2]
[315983530,1709314246908,-1943.42972972,0.00021917,2]
[315983532,1709314246917,-1300.31,0.00021917,2]
[315983533,1709314246927,-1846.12,0.00021917,2]
[315983535,1709314246936,-500.0,0.00021917,2]
[315983536,1709314246946,-1567.13,0.00021917,2]
[315983537,1709314246955,-701.25,0.00021917,2]
[315983538,1709314246964,-500.0,0.00021917,2]
[315983539,1709314246973,-4163.91808367,0.00021917,2]
[315983540,1709314247005,-184.85191633,0.00021917,2]
[315983541,1709314247014,-3178.22,0.00021917,2]
[315983542,1709314247023,-1694.51,0.00021917,2]
[315983543,1709314247032,-2476.78,0.00021917,2]
[315983544,1709314247041,-669.67,0.00021917,2]
[315983545,1709314247050,-1876.32,0.00021917,2]
[315983546,1709314247059,-500.0,0.00021917,2]
[315983547,1709314247068,-750.68,0.00021917,2]
[315983548,1709314247077,-500.0,0.00021917,2]
[315983549,1709314247086,-721.39,0.00021917,2]
[315983550,1709314247096,-3035.77,0.00021917,2]
[315983551,1709314247105,-281.03665978,0.00021917,2]
[315983552,1709314247115,-422.63607251,0.00021917,2]
[315983553,1709314247125,-500.0,0.00021917,2]
[315983554,1709314247139,-1640.17,0.00021917,2]
[315983555,1709314247148,-500.0,0.00021917,2]
[315983556,1709314247158,-2894.77,0.00021917,2]
[315983557,1709314247167,-5602.1,0.00021917,2]
[315983558,1709314247177,-500.0,0.00021917,2]
[315983559,1709314247186,-509.02,0.00021917,2]
[315983560,1709314247196,-500.0,0.00021917,2]
[315983561,1709314247205,-764.65,0.00021917,2]
[315983562,1709314247214,-500.0,0.00021917,2]
[315983563,1709314247223,-500.0,0.00021917,2]
[315983564,1709314247233,-500.0,0.00021917,2]
[315983565,1709314247242,-500.0,0.00021917,2]
[315983566,1709314247251,-2399.8,0.00021917,2]
[315983567,1709314247260,-871.29,0.00021917,2]
[315983568,1709314247270,-501.11,0.00021917,2]
[315983569,1709314247279,-546.15,0.00021917,2]
[315983570,1709314247289,-500.0,0.00021917,2]
[315983571,1709314247298,-500.0,0.00021917,2]
[315983572,1709314247308,-500.0,0.00021917,2]
[315983573,1709314247318,-500.0,0.00021917,2]
[315983574,1709314247327,-1538.8,0.00021917,2]
[315983575,1709314247336,-2522.76,0.00021917,2]
[315983576,1709314247346,-507.91,0.00021917,2]
[315983577,1709314247355,-500.0,0.00021917,2]
[315983578,1709314247364,-500.0,0.00021917,2]
[315983579,1709314247373,-124.81952555,0.00021917,2]
[315983580,1709314247440,-375.18047445,0.00021917,2]
[315983581,1709314247450,-500.0,0.00021917,2]
[315983582,1709314247459,-574.69,0.00021917,2]
[315983583,1709314247469,-2072.26,0.00021917,2]
[315983584,1709314247479,-500.0,0.00021917,2]
[315983585,1709314247489,-360.56734896,0.00021917,2]
[315983586,1709314247502,-2052.54265104,0.00021917,2]
[315983587,1709314247512,-645.17,0.00021917,2]
[315983588,1709314247522,-500.0,0.00021917,2]
[315983589,1709314247533,-500.0,0.00021917,2]
[315983590,1709314247542,-80.04229886,0.00021917,2]
[315983591,1709314247556,-419.95770114,0.00021917,2]
[315983592,1709314247566,-500.0,0.00021917,2]
[315983593,1709314247575,-1678.68068325,0.00021917,2]
[315983594,1709314247597,-214.06931675,0.00021917,2]
[315983595,1709314247607,-547.62,0.00021917,2]
[315983596,1709314247616,-771.31,0.00021917,2]
[315983597,1709314247626,-1770.91,0.00021917,2]
[315983598,1709314247636,-500.0,0.00021917,2]
[315983599,1709314247646,-549.25,0.00021917,2]
[315983600,1709314247655,-500.0,0.00021917,2]
[315983601,1709314247664,-500.0,0.00021917,2]
[315983602,1709314247673,-500.0,0.00021917,2]
[315983603,1709314247682,-500.0,0.00021917,2]
[315983604,1709314247692,-500.0,0.00021917,2]
[315983605,1709314247701,-666.58,0.00021917,2]
[315983606,1709314247710,-3161.13088325,0.00021917,2]
[315983607,1709314247722,-724.41329783,0.00021917,2]
[315983608,1709314247734,-376.11185555,0.00021917,2]
[315983609,1709314247764,-4227.81233234,0.00021917,2]
[315983610,1709314247780,-303.10163103,0.00021917,2]
[315983611,1709314247789,-1205.42,0.00021917,2]
[315983612,1709314247798,-319.12808242,0.00021917,2]
[315983613,1709314247810,-180.87191758,0.00021917,2]
[315983614,1709314247825,-500.0,0.00021917,2]
[315983615,1709314247836,-500.0,0.00021917,2]
[315983616,1709314247845,-500.0,0.00021917,2]
[315983617,1709314247857,-500.0,0.00021917,2]
[315983618,1709314247866,-151.09532761,0.00021917,2]
[315983619,1709314247875,-500.0,0.00021917,2]
[315983620,1709314247886,-500.0,0.00021917,2]
[315983621,1709314247895,-598.66,0.00021917,2]
[315983622,1709314247905,-500.0,0.00021917,2]
[315983623,1709314247914,-500.0,0.00021917,2]
[315983624,1709314247924,-500.0,0.00021918,2]
[315983625,1709314247933,-215.23259901,0.00021926,5]
[315983626,1709314247947,-505.40595551,0.00021926,5]
[315983627,1709314247973,-280.79140129,0.00021926,5]
[315983628,1709314247982,-11508.7748,0.00021927,2]
[315983629,1709314247992,-171.24,0.00021958,2]
[315983630,1709314248002,-802.55282459,0.00021972,2]
[315983631,1709314248011,-150.0,0.00021973,2]
[315983632,1709314248020,-200.0,0.00021987,2]
[315983633,1709314248030,-12406.38,0.00022,5]
[315983634,1709314248041,-814.0,0.00022,2]
[315983635,1709314248076,-770.0,0.00022,4]
[315983636,1709314248087,-1769.91588514,0.00022,2]
[315983637,1709314248098,-200.0,0.00022006,2]
[315983638,1709314248109,-1382.00430526,0.0002202,2]
[315983639,1709314248119,-669.55,0.00022026,2]
[315983640,1709314248132,-200.76261355,0.00022027,2]
[315983641,1709314248146,-500.0,0.00022027,2]
[315983642,1709314248156,-500.0,0.00022027,2]
[315983643,1709314248165,-500.0,0.00022027,2]
[315983644,1709314248176,-492.15148702,0.00022027,2]
[315983645,1709314248185,-500.0,0.00022027,2]
[315983646,1709314248195,-500.0,0.00022027,2]
[315983647,1709314248205,-566.52,0.00022027,2]
[315983648,1709314248215,-475.58,0.00022027,2]
[315983649,1709314248226,-500.0,0.00022027,2]
[315983650,1709314248236,-500.0,0.00022027,2]
[315983651,1709314248246,-507.88352422,0.00022027,2]
[315983652,1709314248256,-500.0,0.00022027,2]
[315983653,1709314248265,-500.0,0.00022027,2]
[315983654,1709314248274,-500.0,0.00022027,2]
[315983655,1709314248283,-500.0,0.00022027,2]
[315983656,1709314248293,-500.0,0.00022027,2]
[315983657,1709314248302,-500.0,0.00022027,2]
[315983658,1709314248312,-500.0,0.00022027,2]
[315983659,1709314248322,-516.52798362,0.00022027,2]
[315983660,1709314248331,-500.0,0.00022027,2]
[315983661,1709314248341,-500.0,0.00022027,2]
[315983662,1709314248350,-500.0,0.00022027,2]
[315983663,1709314248360,-500.0,0.00022027,2]
[315983664,1709314248369,-500.0,0.00022027,2]
[315983665,1709314248382,-500.0,0.00022027,2]
[315983666,1709314248392,-500.0,0.00022027,2]
[315983667,1709314248401,-500.0,0.00022027,2]
[315983668,1709314248411,-500.0,0.00022027,2]
[315983669,1709314248425,-500.0,0.00022027,2]
[315983670,1709314248434,-500.0,0.00022027,2]
[315983671,1709314248443,-500.0,0.00022027,2]
[315983672,1709314248452,-615.51871055,0.00022027,2]
[315983673,1709314248462,-500.0,0.00022027,2]
[315983674,1709314248471,-500.0,0.00022027,2]
[315983675,1709314248480,-500.0,0.00022027,2]
[315983676,1709314248490,-290.62,0.00022027,2]
[315983677,1709314248500,-500.0,0.00022027,2]
[315983678,1709314248509,-500.0,0.00022027,2]
[315983679,1709314248518,-500.0,0.00022027,2]
[315983680,1709314248528,-500.0,0.00022027,2]
[315983681,1709314248538,-500.0,0.00022027,2]
[315983682,1709314248547,-500.0,0.00022027,2]
[315983683,1709314248557,-500.0,0.00022027,2]
[315983684,1709314248567,-751.14,0.00022027,2]
[315983685,1709314248576,-500.0,0.00022027,2]
[315983686,1709314248586,-500.0,0.00022027,2]
[315983687,1709314248596,-500.0,0.00022027,2]
[315983688,1709314248605,-500.0,0.00022027,2]
[315983689,1709314248615,-500.0,0.00022027,2]
[315983690,1709314248624,-500.0,0.00022027,2]
[315983691,1709314248635,-500.0,0.00022027,2]
[315983692,1709314248646,-500.0,0.00022027,2]
[315983693,1709314248655,-500.0,0.00022027,2]
[315983694,1709314248664,-500.0,0.00022027,2]
[315983695,1709314248674,-500.0,0.00022027,2]
[315983696,1709314248683,-568.12392579,0.00022027,2]
[315983697,1709314248693,-500.0,0.00022027,2]
[315983698,1709314248703,-500.0,0.00022027,2]
[315983699,1709314248712,-500.0,0.00022027,2]
[315983700,1709314248721,-500.0,0.00022027,2]
[315983701,1709314248731,-500.0,0.00022027,2]
[315983702,1709314248740,-500.0,0.00022027,2]
[315983703,1709314248750,-500.0,0.00022027,2]
[315983704,1709314249033,-500.0,0.00022027,2]
[315983705,1709314249043,-383.24704079,0.00022027,2]
[315983706,1709314249052,-500.0,0.00022027,2]
[315983707,1709314249062,-500.0,0.00022027,2]
[315983708,1709314249071,-581.57933827,0.00022027,2]
[315983709,1709314249080,-249.24678465,0.00022027,2]
[315983710,1709314249089,-500.0,0.00022027,2]
[315983711,1709314249098,-500.0,0.00022027,2]
[315983712,1709314249107,-500.0,0.00022027,2]
[315983713,1709314249116,-500.0,0.00022027,2]
[315983714,1709314249125,-500.0,0.00022027,2]
[315983715,1709314249137,-500.0,0.00022027,2]
[315983716,1709314249145,-287.35,0.00022027,2]
[315983717,1709314249154,-500.0,0.00022027,2]
[315983718,1709314249164,-662.62,0.00022027,2]
[315983719,1709314249173,-514.00689388,0.00022027,2]
[315983720,1709314249182,-500.0,0.00022027,2]
[315983721,1709314249191,-573.37,0.00022027,2]
[315983722,1709314249200,-500.0,0.00022027,2]
[315983723,1709314249210,-500.0,0.00022027,2]
[315983724,1709314249219,-500.0,0.00022027,2]
[315983725,1709314249229,-500.0,0.00022027,2]
[315983726,1709314249238,-500.0,0.00022027,2]
[315983727,1709314249247,-500.0,0.00022027,2]
[315983728,1709314249257,-500.0,0.00022027,2]
[315983729,1709314249265,-500.0,0.00022027,2]
[315983730,1709314249275,-500.0,0.00022027,2]
[315983731,1709314249284,-500.0,0.00022027,2]
[315983732,1709314249294,-500.0,0.00022027,2]
[315983733,1709314249303,-500.0,0.00022027,2]
[315983734,1709314249312,-500.0,0.00022027,2]
[315983735,1709314249322,-500.0,0.00022027,2]
[315983736,1709314249331,-500.0,0.00022027,2]
[315983737,1709314249341,-500.0,0.00022027,2]
[315983738,1709314249350,-538.14750458,0.00022027,2]
[315983739,1709314249359,-150.0,0.00022027,2]
[315983740,1709314249369,-500.0,0.00022027,2]
[315983741,1709314249378,-500.0,0.00022027,2]
[315983742,1709314249389,-500.0,0.00022027,2]
[315983743,1709314249398,-605.14,0.00022027,2]
[315983744,1709314249407,-500.0,0.00022027,2]
[315983745,1709314249416,-500.0,0.00022027,2]
[315983746,1709314249426,-500.0,0.00022027,2]
[315983747,1709314249435,-653.54,0.00022027,2]
[315983748,1709314249444,-500.0,0.00022027,2]
[315983749,1709314249454,-500.0,0.00022027,2]
[315983750,1709314249463,-500.0,0.00022027,2]
[315983751,1709314249472,-656.19,0.00022027,2]
[315983752,1709314249481,-613.83,0.00022027,2]
[315983753,1709314249490,-583.7,0.00022027,2]
[315983754,1709314249499,-500.0,0.00022027,2]
[315983755,1709314249509,-500.0,0.00022027,2]
[315983756,1709314249518,-500.0,0.00022027,2]
[315983757,1709314249527,-500.0,0.00022027,2]
[315983758,1709314249537,-500.0,0.00022027,2]
[315983759,1709314249547,-324.95289156,0.00022027,2]
[315983760,1709314249557,-500.0,0.00022027,2]
[315983761,1709314249567,-500.0,0.00022027,2]
[315983762,1709314249576,-500.0,0.00022027,2]
[315983763,1709314249585,-5281.63,0.00022027,2]
[315983764,1709314249596,-500.0,0.00022027,2]
[315983765,1709314249605,-797.77,0.00022027,2]
[315983766,1709314249614,-500.0,0.00022027,2]
[315983767,1709314249623,-500.0,0.00022027,2]
[315983768,1709314249633,-472.92502535,0.00022027,2]
[315983769,1709314249642,-910.41,0.00022027,2]
[315983770,1709314249651,-2696.07,0.00022027,2]
[315983771,1709314249660,-2488.81,0.00022027,2]
[315983772,1709314249669,-504.74,0.00022027,2]
[315983773,1709314249678,-500.0,0.00022027,2]
[315983774,1709314249688,-500.0,0.00022027,2]
[315983775,1709314249697,-500.0,0.00022027,2]
[315983776,1709314249706,-676.73,0.00022027,2]
[315983777,1709314249715,-878.7,0.00022027,2]
[315983778,1709314249724,-500.0,0.00022027,2]
[315983779,1709314249733,-500.0,0.00022027,2]
[315983780,1709314249742,-500.0,0.00022027,2]
[315983781,1709314249751,-500.0,0.00022027,2]
[315983782,1709314249760,-799.08,0.00022027,2]
[315983783,1709314249769,-660.31,0.00022027,2]
[315983784,1709314249779,-1367.42,0.00022027,2]
[315983785,1709314249788,-500.0,0.00022027,2]
[315983786,1709314249801,-6703.97,0.00022027,2]
[315983787,1709314249809,-675.85,0.00022027,2]
[315983788,1709314249818,-500.0,0.00022027,2]
[315983789,1709314249827,-500.0,0.00022027,2]
[315983790,1709314249838,-500.0,0.00022027,2]
[315983791,1709314249847,-1115.83,0.00022027,2]
[315983792,1709314249856,-500.0,0.00022027,2]
[315983793,1709314249865,-500.0,0.00022027,2]
[315983794,1709314249875,-500.0,0.00022027,2]
[315983795,1709314249885,-302.69803005,0.00022027,2]
[315983796,1709314249895,-500.0,0.00022027,2]
[315983797,1709314249904,-500.0,0.00022027,2]
[315983798,1709314249913,-500.0,0.00022027,2]
[315983799,1709314249922,-799.33,0.00022027,2]
[315983800,1709314249931,-500.0,0.00022027,2]
[315983801,1709314249940,-1044.31,0.00022027,2]
[315983802,1709314249949,-311.1494161,0.00022027,2]
[315983803,1709314249959,-2292.89,0.00022027,2]
[315983804,1709314249968,-1526.92,0.00022027,2]
[315983805,1709314249977,-878.64,0.00022027,2]
[315983806,1709314249986,-269.57,0.00022027,2]
[315983807,1709314249996,-548.12,0.00022027,2]
[315983808,1709314250004,-500.0,0.00022027,2]
[315983809,1709314250013,-500.0,0.00022027,2]
[315983810,1709314250023,-454.7054851,0.00022027,2]
[315983811,1709314250032,-742.99,0.00022027,2]
[315983812,1709314250041,-500.0,0.00022027,2]
[315983813,1709314250050,-500.0,0.00022027,2]
[315983814,1709314250059,-500.0,0.00022027,2]
[315983815,1709314250069,-796.3,0.00022027,2]
[315983816,1709314250077,-500.0,0.00022027,2]
[315983817,1709314250086,-500.0,0.00022027,2]
[315983818,1709314250096,-500.0,0.00022027,2]
[315983819,1709314250106,-500.0,0.00022027,2]
[315983820,1709314250115,-500.0,0.00022027,2]
[315983821,1709314250124,-634.7,0.00022027,2]
[315983822,1709314250133,-590.51,0.00022027,2]
[315983823,1709314250142,-500.0,0.00022027,2]
[315983824,1709314250151,-500.0,0.00022027,2]
[315983825,1709314250161,-500.0,0.00022027,2]
[315983826,1709314250170,-500.29,0.00022027,2]
[315983827,1709314250180,-500.0,0.00022027,2]
[315983828,1709314250189,-1909.99,0.00022027,2]
[315983829,1709314250199,-500.0,0.00022027,2]
[315983830,1709314250208,-9455.57,0.00022027,2]
[315983831,1709314250218,-500.0,0.00022027,2]
[315983832,1709314250228,-500.0,0.00022027,2]
[315983833,1709314250237,-2736.17,0.00022027,2]
[315983834,1709314250246,-608.0,0.00022027,2]
[315983835,1709314250255,-500.0,0.00022027,2]
[315983836,1709314250265,-500.0,0.00022027,2]
[315983837,1709314250274,-1965.97,0.00022027,2]
[315983838,1709314250283,-607.24,0.00022027,2]
[315983839,1709314250293,-3438.1,0.00022027,2]
[315983840,1709314250302,-500.0,0.00022027,2]
[315983841,1709314250312,-324.08533248,0.00022027,2]
[315983842,1709314250321,-1428.36,0.00022027,2]
[315983843,1709314250331,-500.0,0.00022027,2]
[315983844,1709314250341,-500.0,0.00022027,2]
[315983845,1709314250350,-500.0,0.00022027,2]
[315983846,1709314250360,-1857.2,0.00022027,2]
[315983847,1709314250370,-1133.47,0.00022027,2]
[315983848,1709314250379,-833.88,0.00022027,2]
[315983849,1709314250390,-500.0,0.00022027,2]
[315983850,1709314250399,-1926.74,0.00022027,2]
[315983851,1709314250408,-784.86,0.00022027,2]
[315983852,1709314250418,-500.0,0.00022027,2]
[315983853,1709314250427,-500.0,0.00022027,2]
[315983854,1709314250436,-730.14,0.00022027,2]
[315983855,1709314250446,-500.0,0.00022027,2]
[315983856,1709314250456,-2272.66,0.00022027,2]
[315983857,1709314250465,-1300.31,0.00022027,2]
[315983858,1709314250475,-1846.12,0.00022027,2]
[315983859,1709314250485,-500.0,0.00022027,2]
[315983860,1709314250494,-1567.13,0.00022027,2]
[315983861,1709314250505,-701.25,0.00022027,2]
[315983862,1709314250515,-500.0,0.00022027,2]
[315983863,1709314250524,-4348.77,0.00022027,2]
[315983864,1709314250535,-3178.22,0.00022027,2]
[315983865,1709314250545,-1694.51,0.00022027,2]
[315983866,1709314250555,-2476.78,0.00022027,2]
[315983867,1709314250564,-669.67,0.00022027,2]
[315983868,1709314250574,-1876.32,0.00022027,2]
[315983869,1709314250583,-500.0,0.00022027,2]
[315983870,1709314250593,-750.68,0.00022027,2]
[315983871,1709314250603,-500.0,0.00022027,2]
[315983872,1709314250612,-721.39,0.00022027,2]
[315983873,1709314250621,-3035.77,0.00022027,2]
[315983874,1709314250631,-1640.17,0.00022027,2]
[315983875,1709314250642,-500.0,0.00022027,2]
[315983876,1709314250651,-2894.77,0.00022027,2]
[315983877,1709314250661,-5602.1,0.00022027,2]
[315983878,1709314250670,-509.02,0.00022027,2]
[315983879,1709314250680,-500.0,0.00022027,2]
[315983880,1709314250690,-595.67575565,0.00022027,2]
[315983881,1709314250699,-764.65,0.00022027,2]
[315983882,1709314250709,-500.0,0.00022027,2]
[315983883,1709314250718,-500.0,0.00022027,2]
[315983884,1709314250728,-500.0,0.00022027,2]
[315983885,1709314250738,-500.0,0.00022027,2]
[315983886,1709314250748,-2399.8,0.00022027,2]
[315983887,1709314250758,-871.29,0.00022027,2]
[315983888,1709314250768,-501.11,0.00022027,2]
[315983889,1709314250778,-546.15,0.00022027,2]
[315983890,1709314250789,-500.0,0.00022027,2]
[315983891,1709314250801,-500.0,0.00022027,2]
[315983892,1709314250811,-500.0,0.00022027,2]
[315983893,1709314250821,-1538.8,0.00022027,2]
[315983894,1709314250830,-2522.76,0.00022027,2]
[315983895,1709314250840,-507.91,0.00022027,2]
[315983896,1709314250849,-500.0,0.00022027,2]
[315983897,1709314250859,-500.0,0.00022027,2]
[315983898,1709314250868,-500.0,0.00022027,2]
[315983899,1709314250879,-574.69,0.00022027,2]
[315983900,1709314250890,-2072.26,0.00022027,2]
[315983901,1709314250899,-500.0,0.00022027,2]
[315983902,1709314250910,-2413.11,0.00022027,2]
[315983903,1709314250919,-645.17,0.00022027,2]
[315983904,1709314250929,-500.0,0.00022027,2]
[315983905,1709314250939,-500.0,0.00022027,2]
[315983906,1709314250950,-500.0,0.00022027,2]
[315983907,1709314250960,-500.0,0.00022027,2]
[315983908,1709314250969,-1892.75,0.00022027,2]
[315983909,1709314250978,-547.62,0.00022027,2]
[315983910,1709314250988,-771.31,0.00022027,2]
[315983911,1709314250999,-1770.91,0.00022027,2]
[315983912,1709314251010,-549.25,0.00022027,2]
[315983913,1709314251020,-500.0,0.00022027,2]
[315983914,1709314251030,-500.0,0.00022027,2]
[315983915,1709314251041,-500.0,0.00022027,2]
[315983916,1709314251051,-500.0,0.00022027,2]
[315983917,1709314251062,-500.0,0.00022027,2]
[315983918,1709314251071,-666.58,0.00022027,2]
[315983919,1709314251082,-8792.57,0.00022027,2]
[315983920,1709314251092,-1205.42,0.00022027,2]
[315983921,1709314251102,-500.0,0.00022027,2]
[315983922,1709314251112,-500.0,0.00022027,2]
[315983923,1709314251122,-500.0,0.00022027,2]
[315983924,1709314251132,-500.0,0.00022027,2]
[315983925,1709314251143,-500.0,0.00022027,2]
[315983926,1709314251155,-500.0,0.00022027,2]
[315983927,1709314251165,-612.17,0.00022027,2]
[315983928,1709314251175,-598.66,0.00022027,2]
[315983929,1709314251185,-500.0,0.00022027,2]
[315983930,1709314251196,-500.0,0.00022027,2]
[315983931,1709314251206,-8869.1333715,0.00022036,2]
[315983932,1709314251216,-162.81524003,0.00022036,2]
[315983933,1709314251227,-150.02,0.00022079,2]
[315983934,1709314251238,-156.10825108,0.00022095,2]
[315983935,1709314251248,-200.0,0.000221,2]
[315983936,1709314251258,-800.0,0.000221,2]
[315983937,1709314251268,-200.0,0.000221,2]
[315983938,1709314251277,-500.0,0.000221,2]
[315983939,1709314251287,-200.0,0.000221,2]
[315983940,1709314251298,-8869.13337142,0.00022115,2]
[315983941,1709314251308,-802.55282459,0.00022126,2]
[315983942,1709314251318,-669.55,0.00022135,2]
[315983943,1709314251328,-65478.84873952,0.00022136,4]
[315983944,1709314251691,-3289.09678362,0.00022136,4]
[315983945,1709314251705,-577.16909536,0.00022136,4]
[315983946,1709314251727,-660.32229313,0.00022136,4]
[315983947,1709314251748,-122138.05582243,0.00022136,4]
[315983948,1709314251758,-500.0,0.00022136,2]
[315983949,1709314251767,-500.0,0.00022136,2]
[315983950,1709314251777,-500.0,0.00022136,2]
[315983951,1709314251788,-500.0,0.00022136,2]
[315983952,1709314251801,-500.0,0.00022136,2]
[315983953,1709314251810,-500.0,0.00022136,2]
[315983954,1709314251821,-515.56979683,0.00022136,2]
[315983955,1709314251830,-500.0,0.00022136,2]
[315983956,1709314251840,-500.0,0.00022136,2]
[315983957,1709314251849,-500.0,0.00022136,2]
[315983958,1709314251860,-500.0,0.00022136,2]
[315983959,1709314251869,-525.5,0.00022136,2]
[315983960,1709314251878,-500.0,0.00022136,2]
[315983961,1709314251889,-500.0,0.00022136,2]
[315983962,1709314251898,-500.0,0.00022136,2]
[315983963,1709314251908,-500.0,0.00022136,2]
[315983964,1709314251917,-500.0,0.00022136,2]
[315983965,1709314251926,-500.0,0.00022136,2]
[315983966,1709314251935,-500.0,0.00022136,2]
[315983967,1709314251945,-500.0,0.00022136,2]
[315983968,1709314251955,-500.0,0.00022136,2]
[315983969,1709314251964,-751.14,0.00022136,2]
[315983970,1709314251973,-500.0,0.00022136,2]
[315983971,1709314251983,-500.0,0.00022136,2]
[315983972,1709314251992,-500.0,0.00022136,2]
[315983973,1709314252001,-558.86429441,0.00022136,2]
[315983974,1709314252010,-500.0,0.00022136,2]
[315983975,1709314252019,-500.0,0.00022136,2]
[315983976,1709314252028,-180.78313087,0.00022136,2]
[315983977,1709314252037,-500.0,0.00022136,2]
[315983978,1709314252046,-500.0,0.00022136,2]
[315983979,1709314252056,-500.0,0.00022136,2]
[315983980,1709314252065,-500.0,0.00022136,2]
[315983981,1709314252075,-500.0,0.00022136,2]
[315983982,1709314252084,-500.0,0.00022136,2]
[315983983,1709314252093,-577.6,0.00022136,2]
[315983984,1709314252103,-500.0,0.00022136,2]
[315983985,1709314252112,-500.0,0.00022136,2]
[315983986,1709314252121,-500.0,0.00022136,2]
[315983987,1709314252130,-500.0,0.00022136,2]
[315983988,1709314252140,-500.0,0.00022136,2]
[315983989,1709314252150,-500.0,0.00022136,2]
[315983990,1709314252159,-500.0,0.00022136,2]
[315983991,1709314252168,-500.0,0.00022136,2]
[315983992,1709314252177,-500.0,0.00022136,2]
[315983993,1709314252186,-500.0,0.00022136,2]
[315983994,1709314252195,-500.0,0.00022136,2]
[315983995,1709314252204,-500.0,0.00022136,2]
[315983996,1709314252213,-662.62,0.00022136,2]
[315983997,1709314252222,-500.0,0.00022136,2]
[315983998,1709314252232,-500.0,0.00022136,2]
[315983999,1709314252241,-573.37,0.00022136,2]
[315984000,1709314252250,-500.0,0.00022136,2]
[315984001,1709314252259,-500.0,0.00022136,2]
[315984002,1709314252268,-500.0,0.00022136,2]
[315984003,1709314252277,-500.0,0.00022136,2]
[315984004,1709314252286,-500.0,0.00022136,2]
[315984005,1709314252295,-500.0,0.00022136,2]
[315984006,1709314252304,-500.0,0.00022136,2]
[315984007,1709314252314,-500.0,0.00022136,2]
[315984008,1709314252323,-500.0,0.00022136,2]